[Event "34th MPL National U14-ch 2022"]
[Site "Ahmedabad"]
[Date "2022.05.13"]
[Round "10.2"]
[White "Vaz, Ethan"]
[Black "Kadam Om Manish"]
[Result "0-1"]
[ECO "B19"]
[WhiteElo "1792"]
[BlackElo "2144"]
[Annotator "TA"]
[PlyCount "158"]
[EventDate "2022.05.09"]
[EventType "swiss"]
[EventCountry "IND"]
[SourceTitle "playchess.com"]
[Source "ChessBase"]
[SourceQuality "1"]
[TimeControl "5400+30"]

{[%evp 20,158,0,0,0,0,23,10,22,18,27,25,34,36,34,29,47,20,30,23,29,10,18,14,10,5,5,8,38,0,5,0,0,0,0,-15,0,0,0,0,0,0,0,0,0,-20,0,0,0,0,0,0,0,0,0,-7,0,-21,-21,-35,0,-27,129,0,0,-108,-106,-91,-95,-183,-183,-175,-162,-198,-197,-189,-183,-191,-105,-143,-132,-325,-299,-264,-229,-2267,-2116,-12816,-11117,-6568,-6511,-5457,-5373,-12842,-12842,-12843,-12843,-12843,-12843,-12845,-12845,-12845,-12846,-12847,-12847,-12850,-12850,-12850,-27999,-27999,-27999,-27999,-27999,-27999,-27999,-27999,-27999,-27999,-27999,-27999,-27999,-27999,-27999,-27999,-27999,-27999,-27998,-27999,-27999,-27993,-27993,-27994,-27994,-27995,-27995,-27996,-27996,-27997,-27997,-27998,-27998]} 1. e4 {[%emt 0:00:03]} c6 {[%emt 0:00:12]} 2. d4 {[%emt 0:00:14]} d5 {[%emt 0:00:04]} 3. Nc3 {[%emt 0:00:31]} dxe4 {[%emt 0:00:04]} 4. Nxe4 {[%emt 0:00:18]} Bf5 {[%emt 0:00:03]} 5. Ng3 {[%emt 0:00:25]} Bg6 {[%emt 0:00:06]} 6. h4 {[%emt 0:00:24]} h6 {[%emt 0:00:02]} 7. Nf3 {[%emt 0:00:39]} Nd7 {[%emt 0:00:07]} 8. Bd3 {[%emt 0:02:13]} Bxd3 {[%emt 0:00:11]} 9. Qxd3 {[%emt 0:00:01]} e6 {[%emt 0:00:15]} 10. Bd2 {[%emt 0:01:08]} Ngf6 {[%emt 0:00:06]} 11. O-O-O {[%emt 0:02:45]} Be7 {[%emt 0:00:28] B19: Classical Caro-Kann: 4...Bf5 main line.} 12. Ne4 {[%emt 0:04:20]} Qc7 {[%emt 0:04:22]} 13. Kb1 {[%emt 0:03:44]} O-O-O {[%emt 0:02:40] The position is equal.} 14. Nxf6 {[%emt 0:05:49] [#]} Nxf6 $146 {[%emt 0:00:53]} ({Predecessor:} 14... Bxf6 15. Qa3 Qb6 16. Ba5 Qa6 17. Bxd8 Qxa3 18. bxa3 Rxd8 19. c3 Nb6 20. Ne5 Bxe5 21. dxe5 {1-0 (36) Zenkov,G (2033)-Kuznecov,S (1791) Kemerovo 2013}) 15. Qe2 {[%emt 0:09:23]} Kb8 {[%emt 0:01:35]} 16. c4 {[%emt 0:07:14]} Ka8 {[%emt 0:01:14]} 17. Bc3 {[%emt 0:04:55]} Qf4 {[%emt 0:07:17]} 18. Rhe1 {[%emt 0:08:35]} Ng4 {[%emt 0:03:55]} 19. Rd2 {[%emt 0:11:22]} h5 {[%emt 0:19:01]} 20. g3 {[%emt 0:06:38]} Qf5+ {[%emt 0:11:42]} 21. Qe4 {[%emt 0:08:17]} Qxe4+ {[%emt 0:02:34]} 22. Rxe4 {[%emt 0:00:04][%cal Od4d5]} Bf6 {[%emt 0:04:04]} 23. Kc2 {[%emt 0:05:39]} Kb8 {[%emt 0:01:13]} 24. Rde2 {[%emt 0:04:28]} Kc8 {[%emt 0:01:31]} 25. b3 {[%emt 0:04:19]} Rd7 {[%emt 0:01:11]} 26. Rd2 {[%emt 0:01:35]} Rhd8 {[%emt 0:00:47]} 27. Ree2 {[%emt 0:00:45][%cal Be4e2,Be2d2,Bd2d1,Bd1e1][%mdl 32]} Nh6 {[%emt 0:02:09][%cal Bg4h6,Bh6f5,Bf5d6][%mdl 32]} 28. Ne5 {[%emt 0:01:11]} Rc7 {[%emt 0:01:10]} 29. Rd3 {[%emt 0:08:01]} Nf5 {[%emt 0:00:12]} 30. Red2 {[%emt 0:00:00]} b6 {[%emt 0:01:06]} 31. a4 {[%emt 0:00:00]} Kb7 {[%emt 0:02:01]} 32. Rd1 {[%emt 0:00:00]} Nd6 {[%emt 0:00:48]} 33. Re1 {[%emt 0:00:00]} Rdc8 {[%emt 0:02:35]} 34. Re2 {[%emt 0:00:00]} Nf5 {[%emt 0:00:19]} 35. Red2 {[%emt 0:00:00]} Nh6 {[%emt 0:00:23]} 36. Rd1 {[%emt 0:00:00]} Nf5 {[%emt 0:00:52]} 37. R1d2 {[%emt 0:00:00]} Rg8 {[%emt 0:00:04]} 38. f4 {[%emt 0:00:10]} Rd8 {[%emt 0:01:02]} 39. Rd1 {[%emt 0:00:44]} Nd6 {[%emt 0:03:37]} 40. Re1 {[%emt 0:00:35]} Be7 $2 {[%emt 0:00:05]} (40... g6 $11) 41. Bb4 {[%emt 0:00:53]} (41. c5 $16) 41... Nf5 $11 {[%emt 0:03:50]} 42. Bxe7 {[%emt 0:00:15]} (42. Nxf7 $11 {keeps the balance.} Bxb4 43. Nxd8+ Kc8 44. Rxe6 $1 Kxd8 45. Re5) 42... Rxe7 $17 {[%emt 0:00:04]} 43. Kc3 {[%emt 0:00:31]} f6 {[%emt 0:01:10]} 44. Ng6 {[%emt 0:00:46] [#]} (44. g4 $17 {was worth a try.} hxg4 45. Nxg4) 44... Red7 $1 $19 {[%emt 0:00:39][%cal Rf5d4]} 45. Rxe6 {[%emt 0:01:37]} Nxd4 {[%emt 0:00:04]} ({And not} 45... Rxd4 46. Rxd4 Rxd4 47. Ne7 $11) 46. Re7 {[%emt 0:01:04]} Rxe7 {[%emt 0:00:11]} 47. Nxe7 {[%emt 0:00:02][%mdl 4096] Endgame KRN-KRN} Ne2+ {[%emt 0:00:01]} 48. Kd2 {[%emt 0:00:08]} Rxd3+ {[%emt 0:00:02]} 49. Kxd3 {[%emt 0:00:05]} Nxg3 {[%emt 0:00:04] KN-KN} 50. Ke3 $2 {[%emt 0:01:59] Now White is beyond hope.} (50. Kd4 $17) 50... Kc7 {[%emt 0:00:20]} 51. Kf3 {[%emt 0:01:07] [#]} Kd7 $1 {[%emt 0:00:09]} 52. Kxg3 $2 {[%emt 0:00:49]} ({Don't go for} 52. Nxc6 $2 Kxc6 53. Kxg3 Kc5 $19) (52. Ng6 Nf5 53. Ke4 Nd6+ 54. Kd4) 52... Kxe7 {[%emt 0:00:03] KP-KP} 53. Kf3 {[%emt 0:00:08]} c5 {[%emt 0:00:58]} 54. Ke4 {[%emt 0:00:34]} g6 {[%emt 0:01:19] Strongly threatening ...Kf7.} 55. Kd5 {[%emt 0:00:51]} a5 {[%emt 0:05:09]} 56. Kc6 {[%emt 0:00:22]} g5 {[%emt 0:00:17]} 57. fxg5 {[%emt 0:00:22]} fxg5 {[%emt 0:00:04]} 58. hxg5 {[%emt 0:00:20]} h4 {[%emt 0:00:02]} 59. Kxb6 {[%emt 0:00:06]} h3 {[%emt 0:00:02]} 60. Kxc5 {[%emt 0:00:23]} h2 {[%emt 0:00:04]} 61. Kb5 {[%emt 0:00:03]} h1=Q {[%emt 0:00:42]} 62. Kxa5 {[%emt 0:00:03]} Qh5 {[%emt 0:00:20]} 63. b4 {[%emt 0:00:07]} Qxg5+ {[%emt 0:00:09]} 64. c5 {[%emt 0:00:15] Black mates.} Kd7 {[%emt 0:00:10]} 65. Kb6 {[%emt 0:00:05]} Qf4 {[%emt 0:00:12]} 66. Kb5 {[%emt 0:00:17]} Kc7 {[%emt 0:00:12]} 67. a5 {[%emt 0:00:09]} Qf1+ {[%emt 0:00:03]} 68. Ka4 {[%emt 0:00:03]} Kc6 {[%emt 0:00:01]} 69. Kb3 {[%emt 0:00:07]} Kb5 {[%emt 0:00:04]} 70. Kc3 {[%emt 0:00:05]} Qc4+ {[%emt 0:00:03]} 71. Kd2 {[%emt 0:00:03]} Qxb4+ {[%emt 0:00:04]} 72. Kd3 {[%emt 0:00:02]} Kxc5 {[%emt 0:00:04]} 73. a6 {[%emt 0:00:04]} Qa3+ {[%emt 0:00:02]} 74. Ke4 {[%emt 0:00:04]} Qxa6 {[%emt 0:00:02]} 75. Ke5 {[%emt 0:00:05]} Qe2+ {[%emt 0:00:03]} 76. Kf6 {[%emt 0:00:03]} Kd6 {[%emt 0:00:02]} 77. Kf7 {[%emt 0:00:08]} Qe6+ {[%emt 0:00:04]} 78. Kf8 {[%emt 0:00:05]} Qe7+ {[%emt 0:00:01]} 79. Kg8 {[%emt 0:00:07]} Ke6 {[%emt 0:00:01] Weighted Error Value: White=0.51/Black=0.10 (very precise)} 0-1

[Event "34th MPL National U14-ch 2022"]
[Site "Ahmedabad"]
[Date "2022.05.13"]
[Round "10.3"]
[White "Bagwe Gaurang"]
[Black "Mayank Chakraborty"]
[Result "1-0"]
[ECO "B22"]
[WhiteElo "1789"]
[BlackElo "2015"]
[Annotator "TA"]
[PlyCount "117"]
[EventDate "2022.05.09"]
[EventType "swiss"]
[EventCountry "IND"]
[SourceTitle "playchess.com"]
[Source "ChessBase"]
[SourceQuality "1"]
[TimeControl "5400+30"]

{[%evp 16,117,0,0,0,0,12,0,3,-16,68,87,85,93,103,100,479,470,444,372,369,374,370,337,610,238,236,232,234,233,255,239,253,251,254,256,264,260,261,256,281,267,364,380,393,356,368,359,350,352,438,465,466,448,592,590,679,647,855,864,554,246,12841,12841,12841,12841,12842,12842,12842,12843,12843,12843,12844,599,12842,12843,12843,12843,12844,12844,12845,12845,12846,12847,12847,12847,12847,12847,12847,12846,12847,12847,12847,12847,12848,12847,12848,12847,12850,12850,27999,27999,27999,27999]} 1. e4 {[%emt 0:00:09][%cal Be2e4,Be4e5][%mdl 32]} c5 {[%emt 0:00:03]} 2. Nf3 {[%emt 0:00:04]} Nc6 {[%emt 0:00:03]} 3. c3 {[%emt 0:00:04]} Nf6 {[%emt 0:00:09]} 4. e5 {[%emt 0:00:24]} Nd5 {[%emt 0:00:05]} 5. d4 {[%emt 0:00:06]} cxd4 {[%emt 0:00:10]} 6. cxd4 {[%emt 0:00:06]} d6 {[%emt 0:00:15]} 7. exd6 {[%emt 0:00:22]} e6 {[%emt 0:00:14]} 8. Nc3 {[%emt 0:00:05]} Bxd6 {[%emt 0:00:21]} 9. Bd3 {[%emt 0:03:17]} O-O {[%emt 0:03:18] B22: Sicilian: 2 c3.} 10. O-O {[%emt 0:00:29]} h6 {[%emt 0:00:18]} 11. Re1 {[%emt 0:08:55]} b6 {[%emt 0:05:20] [#] The position is equal.} 12. Bd2 $146 {[%emt 0:04:20]} ({Predecessor:} 12. Bb1 Ncb4 13. a3 Nxc3 14. bxc3 Nd5 15. Qd3 Nf6 16. Ne5 Bb7 17. Qh3 Re8 18. Bd2 {1-0 (40) Medina Diaz,R (2287)-Arvizu Borchardt,D (1987) Mexico City 2022}) 12... Bb7 {[%emt 0:01:28]} (12... Nf6 $11) 13. Nxd5 $14 {[%emt 0:00:41]} exd5 {[%emt 0:00:06]} 14. Ne5 {[%emt 0:01:59] Qh5 is the strong threat.} Re8 {[%emt 0:20:27][%cal Rc6e5]} 15. Qh5 {[%emt 0:09:22] White is more active.} Qf6 {[%emt 0:04:12][%mdl 8192]} (15... Nxe5 $16 16. dxe5 Bf8) 16. Ng4 $18 {[%emt 0:03:40][%csl LRd5,LRf6]} Qxd4 {[%emt 0:03:50]} (16... Rxe1+ $2 17. Rxe1 Qxd4 18. Qf5 Qxd3 19. Qxd3) 17. Qf5 {[%emt 0:00:19]} Re4 {[%emt 0:14:11]} 18. Bxe4 {[%emt 0:00:14]} dxe4 {[%emt 0:00:20]} 19. Bc3 {[%emt 0:03:59] Chess con chili.} Bc8 $2 {[%emt 0:07:24]} (19... Qc5 20. Bxg7 (20. Qxe4 Nd8 $18) 20... Qxf5 21. Nxh6+ Kh7 22. Nxf5 Bc5 23. Rxe4 Kg6) 20. Qxc8+ $2 {[%emt 0:06:07]} (20. Nxh6+ gxh6 21. Qh5) 20... Rxc8 {[%emt 0:00:06]} 21. Bxd4 {[%emt 0:00:08]} Nxd4 {[%emt 0:00:05]} 22. Rxe4 {[%emt 0:03:47]} Ne6 {[%emt 0:00:28]} 23. Re2 {[%emt 0:03:01]} Nf4 {[%emt 0:00:56]} 24. Ree1 {[%emt 0:02:16]} h5 {[%emt 0:10:01]} 25. Ne3 {[%emt 0:05:36]} Bc5 {[%emt 0:02:21]} 26. g3 {[%emt 0:01:57]} Nd3 {[%emt 0:00:25]} 27. Re2 {[%emt 0:00:27]} Re8 {[%emt 0:02:07]} 28. Kg2 {[%emt 0:03:31]} Re6 {[%emt 0:01:10]} 29. Rd1 {[%emt 0:00:34]} Nb4 {[%emt 0:00:41]} 30. Rd8+ {[%emt 0:00:37]} Kh7 {[%emt 0:00:29]} 31. Rd7 {[%emt 0:03:07][%csl LRa7,LRf7]} Nxa2 {[%emt 0:00:14]} 32. Rxf7 {[%emt 0:01:05]} ({But not} 32. Rxa7 Nb4 33. Rxf7 Nd5) 32... a5 {[%emt 0:01:05]} 33. Rd2 {[%emt 0:00:34]} Bxe3 {[%emt 0:00:16]} 34. fxe3 {[%emt 0:00:12]} Rxe3 {[%emt 0:00:12][%mdl 4096] Endgame KRR-KRN} 35. Rdd7 {[%emt 0:00:08]} Re2+ {[%emt 0:00:22]} 36. Kf3 {[%emt 0:00:31]} Rxb2 {[%emt 0:02:16]} 37. Rxg7+ {[%emt 0:00:13]} Kh6 {[%emt 0:00:06]} 38. Kf4 {[%emt 0:01:36]} (38. Rg8 $142 {White threatens Rd6+ and mate.} Nc3 39. Rd6+ Kh7 40. Rb8 Rf2+ 41. Kxf2 Ne4+ 42. Kf3 Nxd6 43. Rxb6) 38... Rf2+ $2 {[%emt 0:05:06]} (38... Nc3 39. Rge7 Rf2+ 40. Ke5 Re2+ 41. Kd4 Rxe7 42. Rxe7 Na4) 39. Ke5 {[%emt 0:00:26] White wants to mate with Rh7+.} Re2+ {[%emt 0:00:20]} 40. Kf5 {[%emt 0:00:20][%csl Gd7][%cal Rg7h7]} Rf2+ {[%emt 0:00:25] [#]} 41. Ke6 $1 {[%emt 0:00:09]} Re2+ {[%emt 0:00:22] [#]} 42. Kf7 $1 {[%emt 0:00:05] Rd6+ would kill now.} Rf2+ {[%emt 0:01:12]} 43. Kg8 {[%emt 0:01:58] Threatening mate with Rd6+.} Rf6 {[%emt 0:00:14] Inhibits Rd6.} 44. Rd5 {[%emt 0:11:17]} (44. g4 $142 hxg4 45. Rxg4) 44... Rg6 {[%emt 0:03:32]} 45. Rxg6+ {[%emt 0:00:22]} Kxg6 {[%emt 0:00:02] KR-KN} 46. Rb5 {[%emt 0:00:21]} Nc3 {[%emt 0:00:45]} 47. Rxb6+ {[%emt 0:00:06]} Kf5 {[%emt 0:01:13]} 48. Kg7 {[%emt 0:00:34]} Kg4 {[%emt 0:00:34]} 49. Rc6 {[%emt 0:01:08]} Nd1 {[%emt 0:04:22]} 50. Kg6 {[%emt 0:00:34]} Ne3 {[%emt 0:11:49]} 51. Rf6 {[%emt 0:03:18]} Nd5 {[%emt 0:00:00]} 52. Re6 {[%emt 0:02:51]} Nc3 {[%emt 0:01:00]} 53. Rc6 {[%emt 0:00:29]} Nd5 {[%emt 0:00:00]} 54. Rc4+ {[%emt 0:00:14]} Kh3 {[%emt 0:00:00]} 55. Rh4+ {[%emt 0:00:55]} Kg2 {[%emt 0:00:00]} 56. Kxh5 {[%emt 0:01:11]} Ne3 {[%emt 0:00:00]} 57. Ra4 {[%emt 0:00:30]} Kxh2 {[%emt 0:00:00]} 58. g4 {[%emt 0:00:06][%cal Bg3g4,Bg4g5][%mdl 32]} Kg3 {[%emt 0:00:00]} 59. g5 {[%emt 0:00:16] Black did not feel at home in the position after the opening.  Weighted Error Value: White=0.39/Black=0.78} 1-0

[Event "34th MPL National U14-ch 2022"]
[Site "Ahmedabad"]
[Date "2022.05.13"]
[Round "10.4"]
[White "Aswath S"]
[Black "Bharadia Yash"]
[Result "1/2-1/2"]
[ECO "E16"]
[WhiteElo "1694"]
[BlackElo "1924"]
[Annotator "TA"]
[PlyCount "69"]
[EventDate "2022.05.09"]
[EventType "swiss"]
[EventCountry "IND"]
[SourceTitle "playchess.com"]
[Source "ChessBase"]
[SourceQuality "1"]
[TimeControl "5400+30"]

{[%evp 10,69,46,14,60,54,68,45,47,54,59,58,66,55,50,43,56,14,56,39,54,0,29,20,56,44,60,69,79,70,72,52,61,19,54,55,62,45,65,42,62,34,33,32,160,145,152,152,128,125,123,126,121,124,113,116,107,39,59,56,141,55]} 1. d4 {[%emt 0:00:05]} Nf6 {[%emt 0:00:03]} 2. c4 {[%emt 0:00:08]} e6 {[%emt 0:00:06]} 3. Nf3 {[%emt 0:00:06]} b6 {[%emt 0:00:09]} 4. g3 {[%emt 0:00:09]} Bb7 {[%emt 0:00:06]} 5. Bg2 {[%emt 0:00:04]} d6 {[%emt 0:00:44]} 6. O-O {[%emt 0:00:20]} Nbd7 {[%emt 0:00:07] 6...Nbd7 is better than 6...Be7. E16: Queen's Indian: 4 g3 Bb7 5 Bg2 Bb4+.} (6... Be7 $11) 7. Nc3 $14 {[%emt 0:00:10]} g6 {[%emt 0:00:06]} 8. Qc2 {[%emt 0:00:57]} Bg7 {[%emt 0:00:16] White is slightly better.} 9. Rd1 {[%emt 0:01:00] [#]} Qe7 $146 {[%emt 0:01:55]} (9... O-O 10. b3 Qe7 11. Bb2 a6 12. Rd2 Rad8 13. Rad1 Bh6 14. e3 Ne8 15. Re2 f5 16. Bc1 Ndf6 17. Ree1 g5 18. d5 e5 19. Qxf5 Nxd5 20. Nxd5) ({Predecessor:} 9... O-O 10. b3 Qe7 11. Bb2 a6 12. Rd2 Rad8 13. Rad1 Bh6 14. e3 Ne8 15. Re2 f5 16. Bc1 Ndf6 17. Ree1 g5 18. d5 e5 19. Qxf5 Nxd5 20. Nxd5 {0-1 (20) Molina,J (2144)-Gemy Vargas,J (2320) Cochabamba 2013}) 10. b4 {[%emt 0:05:06]} O-O {[%emt 0:00:54]} 11. Rb1 {[%emt 0:02:14]} c6 {[%emt 0:19:46]} 12. e4 {[%emt 0:08:10]} e5 $1 {[%emt 0:00:55]} 13. Ba3 {[%emt 0:15:21]} b5 {[%emt 0:17:35]} (13... Rfe8) 14. dxe5 {[%emt 0:14:01]} (14. c5) 14... dxe5 {[%emt 0:00:47]} 15. Qe2 {[%emt 0:01:11]} (15. c5 $14) 15... a6 {[%emt 0:00:41]} 16. Bc1 {[%emt 0:00:42]} Nb6 {[%emt 0:06:55]} 17. Nd2 {[%emt 0:03:06]} ({Much weaker is} 17. cxb5 axb5 18. Be3 Nfd7 $11) 17... Rfd8 {[%emt 0:03:13]} 18. c5 {[%emt 0:00:52]} Nbd7 {[%emt 0:00:29] [#]} 19. Nb3 $1 {[%emt 0:01:12]} Nf8 {[%emt 0:00:55]} 20. Be3 {[%emt 0:00:43] White is more active.} Ne6 {[%emt 0:00:31]} 21. Bf3 {[%emt 0:03:04]} (21. Na5) 21... Ne8 {[%emt 0:01:35] aiming for ...Nd4.} 22. Qc2 {[%emt 0:02:47]} Bf6 {[%emt 0:06:52]} 23. h4 {[%emt 0:04:11]} N8g7 {[%emt 0:01:26]} 24. Kg2 {[%emt 0:04:08]} h5 {[%emt 0:06:56]} 25. Rxd8+ {[%emt 0:03:59]} Rxd8 {[%emt 0:00:19]} 26. Rd1 {[%emt 0:00:28]} Nd4 {[%emt 0:09:37]} ({Black should play} 26... Bc8 $14) 27. Bxd4 $16 {[%emt 0:02:15]} exd4 {[%emt 0:00:03]} 28. Ne2 {[%emt 0:00:24][%cal Bc3e2,Be2c1,Bc1d3][%mdl 32]} Ne6 {[%emt 0:00:20]} 29. Na5 {[%emt 0:03:19]} Be5 {[%emt 0:01:32]} 30. Nc1 {[%emt 0:01:16]} Ba8 {[%emt 0:01:14]} 31. Nd3 {[%emt 0:00:42]} Bc7 {[%emt 0:00:04] [#]} 32. Nb3 $1 {[%emt 0:00:21] Pair of Knights!} Bb7 {[%emt 0:03:01]} 33. Ra1 {[%emt 0:01:29]} (33. e5 $16) 33... Ra8 {[%emt 0:02:38]} 34. a4 {[%emt 0:00:13]} Qd8 {[%emt 0:00:12]} (34... bxa4 $14 35. Rxa4 g5) 35. Qc1 {[%emt 0:02:15] Weighted Error Value: White=0.12 (very precise) /Black=0.24 (precise)} ({Better is} 35. a5 $16) 1/2-1/2

[Event "34th MPL National U14-ch 2022"]
[Site "Ahmedabad"]
[Date "2022.05.13"]
[Round "10.5"]
[White "Abhash Roimya Saikia"]
[Black "Mrithyunjay Mahadevan"]
[Result "1-0"]
[ECO "B26"]
[WhiteElo "1794"]
[BlackElo "1661"]
[Annotator "NA RC COMBH"]
[PlyCount "107"]
[EventDate "2022.05.09"]
[EventType "swiss"]
[EventCountry "IND"]
[SourceTitle "playchess.com"]
[Source "ChessBase"]
[SourceQuality "1"]
[TimeControl "5400+30"]

1. e4 {[%emt 0:00:10]} c5 {[%emt 0:00:04]} 2. Nc3 {[%emt 0:00:25]} d6 {[%emt 0:00:07]} 3. g3 {[%emt 0:00:06]} Nc6 {[%emt 0:00:09]} 4. Bg2 {[%emt 0:00:23]} g6 {[%emt 0:00:10]} 5. d3 {[%emt 0:00:06]} Bg7 {[%emt 0:00:05]} 6. Be3 {[%emt 0:00:08]} e6 {[%emt 0:04:55]} 7. Qd2 {[%emt 0:00:06]} Rb8 {[%emt 0:01:18]} 8. Nge2 {[%emt 0:01:50]} Qb6 {[%emt 0:10:08]} 9. O-O {[%emt 0:04:09]} Nd4 {[%emt 0:00:52]} 10. Nd1 {[%emt 0:01:57]} Ne7 {[%emt 0:03:38]} 11. c3 {[%emt 0:00:31]} Nxe2+ {[%emt 0:00:08]} 12. Qxe2 {[%emt 0:00:03]} O-O {[%emt 0:01:00]} 13. Qd2 {[%emt 0:07:07]} d5 {[%emt 0:11:10]} 14. Bh6 {[%emt 0:07:31]} Qd6 {[%emt 0:16:55]} 15. Bxg7 {[%emt 0:16:47]} Kxg7 {[%emt 0:00:20]} 16. Qc1 {[%emt 0:03:22]} b6 {[%emt 0:08:26]} 17. Ne3 {[%emt 0:04:02]} Ba6 {[%emt 0:00:56]} 18. c4 {[%emt 0:11:06]} d4 {[%emt 0:01:13]} 19. Ng4 {[%emt 0:01:04]} Ng8 {[%emt 0:04:28]} 20. f4 {[%emt 0:01:30]} h5 {[%emt 0:00:34]} 21. Nf2 {[%emt 0:04:24]} f5 {[%emt 0:01:15]} 22. Re1 {[%emt 0:02:56]} Rfe8 {[%emt 0:00:47]} 23. Qd2 {[%emt 0:02:25]} Ne7 {[%emt 0:07:01]} 24. Re2 {[%emt 0:06:32]} b5 {[%emt 0:03:29]} 25. b3 {[%emt 0:00:09]} bxc4 {[%emt 0:00:24]} 26. bxc4 {[%emt 0:00:28]} Qb6 {[%emt 0:07:26]} 27. Rae1 {[%emt 0:02:59]} fxe4 {[%emt 0:00:12]} 28. Nxe4 {[%emt 0:02:11]} Nf5 {[%emt 0:00:13]} 29. Ng5 {[%emt 0:03:24]} Ne3 {[%emt 0:00:15]} 30. Rxe3 {[%emt 0:00:28]} dxe3 {[%emt 0:00:11]} 31. Qxe3 {[%emt 0:00:29]} Qd6 {[%emt 0:02:23]} 32. Nxe6+ {[%emt 0:01:00]} Kf6 {[%emt 0:00:40]} 33. f5 {[%emt 0:00:08]} Qd4 {[%emt 0:01:40]} 34. Nxd4 {[%emt 0:00:17]} Rxe3 {[%emt 0:00:07]} 35. Rxe3 {[%emt 0:00:04]} Rb1+ {[%emt 0:00:25]} 36. Bf1 {[%emt 0:03:56]} cxd4 {[%emt 0:00:32]} 37. Re6+ {[%emt 0:00:10]} Kxf5 {[%emt 0:00:08]} 38. Rxa6 {[%emt 0:00:06]} g5 {[%emt 0:03:00]} 39. Rxa7 {[%emt 0:00:18]} h4 {[%emt 0:00:08]} 40. gxh4 {[%emt 0:00:09]} gxh4 {[%emt 0:00:07]} 41. a4 {[%emt 0:00:13]} Kf4 {[%emt 0:00:31]} 42. a5 {[%emt 0:00:05]} Ke3 {[%emt 0:00:06]} 43. a6 {[%emt 0:00:05]} Kd2 {[%emt 0:00:05]} 44. Rb7 {[%emt 0:00:13]} Ra1 {[%emt 0:00:08]} 45. a7 {[%emt 0:00:04]} Ke3 {[%emt 0:00:28]} 46. c5 {[%emt 0:00:06]} Ra6 {[%emt 0:00:11]} 47. c6 {[%emt 0:00:36]} h3 {[%emt 0:00:07]} 48. Bxh3 {[%emt 0:00:32]} Kxd3 {[%emt 0:00:08]} 49. Bf1+ {[%emt 0:00:05]} Kc2 {[%emt 0:00:06]} 50. Bxa6 {[%emt 0:00:06]} d3 {[%emt 0:00:04]} 51. Bxd3+ {[%emt 0:00:10]} Kd2 {[%emt 0:00:06]} 52. a8=Q {[%emt 0:00:09]} Ke3 {[%emt 0:00:07]} 53. Qa7+ {[%emt 0:00:17]} Kxd3 {[%emt 0:00:08]} 54. Rb4 {[%emt 0:00:08]} 1-0

[Event "34th MPL National U14-ch 2022"]
[Site "Ahmedabad"]
[Date "2022.05.13"]
[Round "10.6"]
[White "Ilamparthi A R"]
[Black "Dhruva Thota"]
[Result "1-0"]
[ECO "D75"]
[WhiteElo "2121"]
[BlackElo "1743"]
[Annotator "TA"]
[PlyCount "63"]
[EventDate "2022.05.09"]
[EventType "swiss"]
[EventCountry "IND"]
[SourceTitle "playchess.com"]
[Source "ChessBase"]
[SourceQuality "1"]
[TimeControl "5400+30"]

{[%evp 16,63,25,22,27,17,6,10,57,0,5,0,0,0,26,18,15,26,21,0,17,0,98,94,108,113,118,110,120,106,99,111,114,93,129,126,122,140,153,141,168,169,243,222,308,286,386,341,387,314]} 1. Nf3 {[%emt 0:00:03]} Nf6 {[%emt 0:00:33]} 2. g3 {[%emt 0:00:06]} g6 {[%emt 0:00:19]} 3. c4 {[%emt 0:00:14]} Bg7 {[%emt 0:00:08]} 4. Bg2 {[%emt 0:00:04]} O-O {[%emt 0:00:06]} 5. O-O {[%emt 0:00:03]} c5 {[%emt 0:01:53]} 6. Nc3 {[%emt 0:01:37]} d5 {[%emt 0:01:32]} 7. cxd5 {[%emt 0:00:44]} Nxd5 {[%emt 0:00:09]} 8. d4 {[%emt 0:00:27]} cxd4 {[%emt 0:08:14]} 9. Nxd4 {[%emt 0:00:02]} Nb6 {[%emt 0:05:23] D75: Fianchetto Grünfeld: Main Line with 7...c5.} 10. Ndb5 {[%emt 0:02:20] [#] Hoping for Qxd8.} Nc6 {[%emt 0:03:07]} 11. Bf4 {[%emt 0:02:52]} e5 {[%emt 0:08:39]} (11... Bf5 $11 {was preferrable.}) 12. Be3 {[%emt 0:02:23] [#]} (12. Qxd8 $14 Rxd8 13. Bg5) 12... Nd4 $146 {[%emt 0:04:11]} ({Predecessor:} 12... Nc4 13. Bc5 Re8 14. b3 a6 15. Qxd8 Nxd8 16. Nc7 Ne6 17. Nxe6 Bxe6 18. bxc4 Bxc4 {1-0 (24) Diaz Perez,M (2459)-Schut,H (2101) Chess.com INT 2020}) 13. Bxd4 {[%emt 0:10:43]} exd4 {[%emt 0:00:08]} 14. Ne4 {[%emt 0:00:05]} a6 {[%emt 0:05:54]} 15. Nbd6 {[%emt 0:07:38]} Rb8 {[%emt 0:03:01] And now ...Be6 would win.} 16. Nxc8 {[%emt 0:08:37]} Rxc8 {[%emt 0:02:27]} 17. Qb3 {[%emt 0:01:16]} Qc7 {[%emt 0:03:54] Inhibits Rac1.} 18. Bh3 {[%emt 0:08:34]} Rce8 {[%emt 0:12:53]} (18... Nd7 $1 $11 {keeps the balance.}) 19. Rac1 $16 {[%emt 0:01:16][%cal Ba1c1,Bc1c6,Bc6d6][%mdl 32]} Qd8 {[%emt 0:05:20]} 20. Bg2 {[%emt 0:01:08]} Nc8 {[%emt 0:10:07]} 21. Qxb7 {[%emt 0:10:30]} Nd6 {[%emt 0:01:00]} 22. Nxd6 {[%emt 0:08:39] White is much more active.} Qxd6 {[%emt 0:01:55]} 23. Rc6 {[%emt 0:00:06]} Qe5 {[%emt 0:02:50]} 24. Bf3 {[%emt 0:05:38]} ({Don't take} 24. Qxa6 Qxe2 25. Rb1 Qxa6 26. Rxa6 d3) 24... Rb8 {[%emt 0:03:58]} 25. Qxa6 {[%emt 0:00:31]} Rxb2 {[%emt 0:00:23]} 26. a4 {[%emt 0:00:56][%cal Ba2a4,Ba4a5,Ba5a6][%mdl 32]} Qf5 {[%emt 0:02:16]} 27. Rd6 {[%emt 0:01:09]} Rfb8 {[%emt 0:02:30]} 28. Kg2 {[%emt 0:02:23]} Qc2 {[%emt 0:02:32]} (28... Be5 $142) 29. Qa7 $18 {[%emt 0:01:19]} Rf8 {[%emt 0:01:59]} 30. a5 {[%emt 0:00:22]} h5 {[%emt 0:03:19]} 31. h4 {[%emt 0:00:57]} Qc4 {[%emt 0:00:51]} 32. a6 {[%emt 0:01:38] Weighted Error Value: White=0.10 (very precise) /Black=0.32} 1-0